[Event "Anderssen Festival 2019"]
[Site "Wroclaw"]
[Date "2019.08.07"]
[Round "4.1"]
[White "Naumkin, Igor"]
[Black "Chernyshov, Konstantin"]
[Result "1-0"]
[ECO "E18"]
[WhiteElo "2368"]
[BlackElo "2446"]
[Annotator "NA"]
[PlyCount "125"]
[EventDate "2019.08.05"]
[EventType "swiss"]
[EventCountry "POL"]
[SourceTitle "playchess.com"]
[Source "ChessBase"]
[SourceQuality "1"]
[TimeControl "40/5400+30:900+30"]

1. d4 {[%emt 0:03:07]} Nf6 {[%emt 0:00:00]} 2. c4 {[%emt 0:00:07]} e6 {[%emt 0:00:03]} 3. Nf3 {[%emt 0:00:10]} b6 {[%emt 0:00:57]} 4. g3 {[%emt 0:00:19]} Bb7 {[%emt 0:00:07]} 5. Bg2 {[%emt 0:00:07]} Be7 {[%emt 0:00:04]} 6. Nc3 {[%emt 0:00:52]} O-O {[%emt 0:00:31]} 7. O-O {[%emt 0:01:03]} Na6 {[%emt 0:00:03]} 8. a3 {[%emt 0:03:14]} Ne4 {[%emt 0:00:20]} 9. Bd2 {[%emt 0:01:34]} f5 {[%emt 0:02:01]} 10. Qc2 {[%emt 0:03:29]} Nxc3 {[%emt 0:03:05]} 11. Bxc3 {[%emt 0:00:35]} Bf6 {[%emt 0:00:07]} 12. Rad1 {[%emt 0:00:51]} Be4 {[%emt 0:01:00]} 13. Qd2 {[%emt 0:08:09]} c6 {[%emt 0:11:58]} 14. Ne5 {[%emt 0:08:48]} Bxg2 {[%emt 0:00:17]} 15. Kxg2 {[%emt 0:00:06]} Qc7 {[%emt 0:00:33]} 16. Nd3 {[%emt 0:04:58]} Rae8 {[%emt 0:08:58]} 17. Kg1 {[%emt 0:04:44]} Rf7 {[%emt 0:14:17]} 18. Rc1 {[%emt 0:02:12]} d6 {[%emt 0:02:51]} 19. b4 {[%emt 0:04:55]} Qd7 {[%emt 0:00:51]} 20. Qb2 {[%emt 0:02:36]} Nc7 {[%emt 0:06:35]} 21. c5 {[%emt 0:03:28]} Nd5 {[%emt 0:02:36]} 22. cxd6 {[%emt 0:02:11]} Qxd6 {[%emt 0:00:13]} 23. e3 {[%emt 0:01:57]} g5 {[%emt 0:04:47]} 24. Bd2 {[%emt 0:05:50]} g4 {[%emt 0:02:46]} 25. Qc2 {[%emt 0:00:45]} Ne7 {[%emt 0:11:20]} 26. Rfe1 {[%emt 0:03:47]} h5 {[%emt 0:02:23]} 27. Nf4 {[%emt 0:02:07]} h4 {[%emt 0:00:08]} 28. Qc4 {[%emt 0:04:07]} e5 {[%emt 0:02:54]} 29. dxe5 {[%emt 0:02:13]} Bxe5 {[%emt 0:00:12]} 30. Bc3 {[%emt 0:02:45]} Bxf4 {[%emt 0:05:40]} 31. exf4 {[%emt 0:01:28]} Rd8 {[%emt 0:01:54]} 32. gxh4 {[%emt 0:02:35]} Qd5 {[%emt 0:01:57]} 33. Qxd5 {[%emt 0:02:10]} Rxd5 {[%emt 0:00:45]} 34. Re6 {[%emt 0:02:06]} Rd3 {[%emt 0:00:06]} 35. Bf6 {[%emt 0:01:52]} Nd5 {[%emt 0:02:29]} 36. Be5 {[%emt 0:01:35]} c5 {[%emt 0:03:48]} 37. bxc5 {[%emt 0:02:09]} bxc5 {[%emt 0:00:04]} 38. Re8+ {[%emt 0:01:18]} Rf8 {[%emt 0:01:47]} 39. Rxf8+ {[%emt 0:00:07]} Kxf8 {[%emt 0:00:03]} 40. Rxc5 {[%emt 0:00:00]} Nb6 {[%emt 0:00:00]} 41. Rc6 {[%emt 0:07:13]} Nd7 {[%emt 0:04:06]} 42. Bc3 {[%emt 0:04:31]} Rh3 {[%emt 0:04:16]} 43. Bb4+ {[%emt 0:00:08]} Kf7 {[%emt 0:01:06]} 44. Ra6 {[%emt 0:00:50]} Rxh4 {[%emt 0:01:25]} 45. Rxa7 {[%emt 0:00:07]} Ke6 {[%emt 0:00:03]} 46. Ra6+ {[%emt 0:00:14]} Kf7 {[%emt 0:00:06]} 47. Rc6 {[%emt 0:02:07]} Rh3 {[%emt 0:03:30]} 48. Rc3 {[%emt 0:00:42]} Nf6 {[%emt 0:00:53]} 49. Kg2 {[%emt 0:05:05]} Rh5 {[%emt 0:02:16]} 50. Rc7+ {[%emt 0:00:36]} Kg6 {[%emt 0:00:35]} 51. Rc6 {[%emt 0:00:37]} Kf7 {[%emt 0:00:06]} 52. Rc5 {[%emt 0:02:56]} Kg6 {[%emt 0:00:29]} 53. a4 {[%emt 0:01:14]} Rh3 {[%emt 0:01:10]} 54. Rc6 {[%emt 0:01:07]} Kf7 {[%emt 0:00:08]} 55. a5 {[%emt 0:00:49]} Rb3 {[%emt 0:00:21]} 56. Rc7+ {[%emt 0:00:38]} Kg6 {[%emt 0:02:28]} 57. Bc3 {[%emt 0:01:30]} Nd5 {[%emt 0:03:39]} 58. Rc6+ {[%emt 0:00:08]} Kf7 {[%emt 0:00:12]} 59. Be5 {[%emt 0:00:16]} Ra3 {[%emt 0:01:22]} 60. a6 {[%emt 0:00:22]} Ra2 {[%emt 0:00:57]} 61. Kg3 {[%emt 0:01:20]} Ke7 {[%emt 0:01:06]} 62. Rh6 {[%emt 0:01:07]} Kd7 {[%emt 0:01:43]} 63. Rd6+ {[%emt 0:00:14]} 1-0

[Event "Anderssen Festival 2019"]
[Site "Wroclaw"]
[Date "2019.08.07"]
[Round "4.2"]
[White "Gutenev, Alexander"]
[Black "Lalic, Bogdan"]
[Result "1/2-1/2"]
[ECO "C96"]
[WhiteElo "2470"]
[BlackElo "2411"]
[Annotator "ChessBase"]
[PlyCount "119"]
[EventDate "2019.08.05"]
[EventType "swiss"]
[EventCountry "POL"]
[SourceTitle "playchess.com"]
[Source "ChessBase"]
[SourceQuality "1"]
[TimeControl "40/5400+30:900+30"]

1. e4 {[%emt 0:02:33]} e5 {[%emt 0:04:15]} 2. Nf3 {[%emt 0:00:08]} Nc6 {[%emt 0:00:06]} 3. Bb5 {[%emt 0:00:05]} a6 {[%emt 0:00:05]} 4. Ba4 {[%emt 0:00:05]} Nf6 {[%emt 0:00:07]} 5. O-O {[%emt 0:00:06]} Be7 {[%emt 0:00:10]} 6. Re1 {[%emt 0:01:03]} b5 {[%emt 0:00:07]} 7. Bb3 {[%emt 0:00:04]} d6 {[%emt 0:00:05]} 8. c3 {[%emt 0:00:04]} O-O {[%emt 0:00:07]} 9. h3 {[%emt 0:00:03]} Na5 {[%emt 0:00:11]} 10. Bc2 {[%emt 0:00:06]} c5 {[%emt 0:00:09]} 11. d4 {[%emt 0:00:07]} Nd7 {[%emt 0:00:09]} 12. dxc5 {[%emt 0:03:10]} dxc5 {[%emt 0:00:07]} 13. Qe2 {[%emt 0:00:43]} Bb7 {[%emt 0:01:11]} 14. Nbd2 {[%emt 0:04:03]} Qc7 {[%emt 0:00:16]} 15. Nf1 {[%emt 0:04:01]} Nc4 {[%emt 0:00:20]} 16. b3 {[%emt 0:04:24]} Nd6 {[%emt 0:00:08]} 17. c4 {[%emt 0:01:42]} Rfe8 {[%emt 0:01:47]} 18. Bb2 {[%emt 0:05:47]} f6 {[%emt 0:00:08]} 19. Ne3 {[%emt 0:04:13]} Nf8 {[%emt 0:01:30]} 20. Nd5 {[%emt 0:01:41]} Qd8 {[%emt 0:00:24]} 21. Qd3 {[%emt 0:05:20]} Ne6 {[%emt 0:01:23]} 22. Rad1 {[%emt 0:01:30]} Bf8 {[%emt 0:06:36]} 23. Nh4 {[%emt 0:00:42]} Rc8 {[%emt 0:07:38]} 24. Nf3 {[%emt 0:24:26]} bxc4 {[%emt 0:05:33]} 25. bxc4 {[%emt 0:00:04]} Nf7 {[%emt 0:00:09]} 26. Rb1 {[%emt 0:08:02]} Bc6 {[%emt 0:01:54]} 27. Ba3 {[%emt 0:00:25]} Qa5 {[%emt 0:03:18]} 28. Bb2 {[%emt 0:02:55]} Qd8 {[%emt 0:07:26]} 29. Nd2 {[%emt 0:01:06]} Rb8 {[%emt 0:02:48]} 30. Nb3 {[%emt 0:00:47]} Nd4 {[%emt 0:02:14]} 31. Ba3 {[%emt 0:05:37]} Nxc2 {[%emt 0:05:21]} 32. Qxc2 {[%emt 0:00:04]} Ba4 {[%emt 0:00:14]} 33. Qc3 {[%emt 0:01:18]} Ng5 {[%emt 0:01:03]} 34. Nxc5 {[%emt 0:02:33]} Rxb1 {[%emt 0:01:29]} 35. Rxb1 {[%emt 0:00:09]} Bxc5 {[%emt 0:00:06]} 36. Bxc5 {[%emt 0:00:04]} Nxe4 {[%emt 0:00:04]} 37. Qa3 {[%emt 0:04:12]} Kh8 {[%emt 0:16:33]} 38. Be7 {[%emt 0:05:45]} Qd7 {[%emt 0:00:15]} 39. Qe3 {[%emt 0:03:48]} Bc6 {[%emt 0:02:31]} 40. Qxe4 {[%emt 0:00:00]} Qxe7 {[%emt 0:00:00]} 41. Nxe7 {[%emt 0:06:32]} Bxe4 {[%emt 0:00:20]} 42. Rd1 {[%emt 0:00:09]} h5 {[%emt 0:10:40]} 43. Rd7 {[%emt 0:00:06]} Rb8 {[%emt 0:00:44]} 44. f3 {[%emt 0:00:25]} Bc2 {[%emt 0:00:50]} 45. c5 {[%emt 0:02:52]} Ba4 {[%emt 0:00:14]} 46. Ra7 {[%emt 0:00:48]} Rb1+ {[%emt 0:00:12]} 47. Kh2 {[%emt 0:00:04]} Rc1 {[%emt 0:00:36]} 48. Rxa6 {[%emt 0:00:24]} Bb5 {[%emt 0:00:08]} 49. Ra8+ {[%emt 0:05:36]} Kh7 {[%emt 0:00:07]} 50. c6 {[%emt 0:00:10]} Rc2 {[%emt 0:01:13]} 51. Ra7 {[%emt 0:09:09]} Bxc6 {[%emt 0:00:22]} 52. Kg1 {[%emt 0:00:02]} e4 {[%emt 0:01:59]} 53. Rc7 {[%emt 0:00:54]} exf3 {[%emt 0:00:25]} 54. Rxc6 {[%emt 0:00:29]} Rxg2+ {[%emt 0:00:06]} 55. Kf1 {[%emt 0:00:06]} Rxa2 {[%emt 0:00:07]} 56. Nf5 {[%emt 0:00:34]} Rh2 {[%emt 0:02:21]} 57. h4 {[%emt 0:00:21]} g5 {[%emt 0:00:27]} 58. Rxf6 {[%emt 0:00:23]} gxh4 {[%emt 0:00:11]} 59. Rh6+ {[%emt 0:00:30]} Kg8 {[%emt 0:00:05]} 60. Rxh5 {[%emt 0:00:23]} 1/2-1/2

[Event "Anderssen Festival 2019"]
[Site "Wroclaw"]
[Date "2019.08.07"]
[Round "4.3"]
[White "Butkiewicz, Lukasz"]
[Black "Verwoert, Jef"]
[Result "1-0"]
[ECO "B36"]
[WhiteElo "2425"]
[BlackElo "2034"]
[Annotator "NA"]
[PlyCount "121"]
[EventDate "2019.08.05"]
[EventType "swiss"]
[EventCountry "POL"]
[SourceTitle "playchess.com"]
[Source "ChessBase"]
[SourceQuality "1"]
[TimeControl "40/5400+30:900+30"]

1. e4 {[%emt 0:01:20]} c5 {[%emt 0:00:00]} 2. Nf3 {[%emt 0:00:08]} g6 {[%emt 0:00:00]} 3. d4 {[%emt 0:00:17]} cxd4 {[%emt 0:00:07]} 4. Nxd4 {[%emt 0:00:05]} Nc6 {[%emt 0:00:15]} 5. c4 {[%emt 0:00:06]} Nf6 {[%emt 0:01:40]} 6. Nc3 {[%emt 0:06:40]} d6 {[%emt 0:00:22]} 7. Be2 {[%emt 0:00:27]} Nxd4 {[%emt 0:03:11]} 8. Qxd4 {[%emt 0:00:37]} Bg7 {[%emt 0:00:06]} 9. Be3 {[%emt 0:00:13]} O-O {[%emt 0:00:10]} 10. Qd2 {[%emt 0:00:06]} a5 {[%emt 0:02:19]} 11. Rd1 {[%emt 0:00:23]} Be6 {[%emt 0:04:22]} 12. O-O {[%emt 0:00:53]} a4 {[%emt 0:05:56]} 13. f4 {[%emt 0:01:27]} Qa5 {[%emt 0:00:58]} 14. Bd4 {[%emt 0:00:13]} Rfc8 {[%emt 0:10:31]} 15. b3 {[%emt 0:00:31]} axb3 {[%emt 0:01:54]} 16. axb3 {[%emt 0:01:16]} Qb4 {[%emt 0:07:51]} 17. f5 {[%emt 0:01:29]} Bd7 {[%emt 0:00:19]} 18. Bxf6 {[%emt 0:00:41]} Bxf6 {[%emt 0:14:11]} 19. Nd5 {[%emt 0:00:12]} Qxd2 {[%emt 0:00:39]} 20. Nxf6+ {[%emt 0:00:07]} Kg7 {[%emt 0:04:54]} 21. Rxd2 {[%emt 0:06:53]} Kxf6 {[%emt 0:01:36]} 22. fxg6+ {[%emt 0:01:00]} Kxg6 {[%emt 0:00:08]} 23. e5 {[%emt 0:00:23]} Rc6 {[%emt 0:02:14]} 24. Rfd1 {[%emt 0:03:12]} Kg7 {[%emt 0:16:15]} 25. exd6 {[%emt 0:07:37]} exd6 {[%emt 0:03:53]} 26. Bf3 {[%emt 0:16:33]} Rb6 {[%emt 0:00:47]} 27. Rxd6 {[%emt 0:00:07]} Bc6 {[%emt 0:00:09]} 28. R1d3 {[%emt 0:00:20]} Ra2 {[%emt 0:03:32]} 29. Bd5 {[%emt 0:04:58]} Rba6 {[%emt 0:01:43]} 30. h3 {[%emt 0:01:31]} Bxd5 {[%emt 0:01:03]} 31. Rg3+ {[%emt 0:01:42]} Kf8 {[%emt 0:00:34]} 32. Rxd5 {[%emt 0:00:11]} Rb6 {[%emt 0:00:44]} 33. Rd7 {[%emt 0:03:11]} Re2 {[%emt 0:03:10]} 34. Kh2 {[%emt 0:06:29]} Rb2 {[%emt 0:04:23]} 35. Rf3 {[%emt 0:08:41]} f6 {[%emt 0:00:31]} 36. c5 {[%emt 0:01:12]} R6xb3 37. Rxf6+ {[%emt 0:00:28]} Kg8 {[%emt 0:03:35]} 38. Re6 {[%emt 0:00:38]} Rf3 {[%emt 0:00:07]} 39. Re8+ {[%emt 0:00:24]} Rf8 {[%emt 0:00:05]} 40. Rxf8+ {[%emt 0:00:00]} Kxf8 {[%emt 0:00:00]} 41. Rxh7 {[%emt 0:00:34]} Kg8 {[%emt 0:03:11]} 42. Rc7 {[%emt 0:00:17]} Rb5 {[%emt 0:00:40]} 43. h4 {[%emt 0:00:30]} b6 {[%emt 0:00:12]} 44. cxb6 {[%emt 0:00:11]} Rxb6 {[%emt 0:00:05]} 45. Kh3 {[%emt 0:00:12]} Rb1 {[%emt 0:00:33]} 46. g3 {[%emt 0:00:36]} Kh8 {[%emt 0:00:25]} 47. h5 {[%emt 0:00:22]} Kg8 {[%emt 0:00:23]} 48. Kh4 {[%emt 0:00:44]} Kh8 {[%emt 0:00:15]} 49. Re7 {[%emt 0:00:57]} Rb4+ {[%emt 0:00:28]} 50. g4 {[%emt 0:00:16]} Ra4 {[%emt 0:00:17]} 51. Kg5 {[%emt 0:00:48]} Kg8 {[%emt 0:00:39]} 52. Kf5 {[%emt 0:00:31]} Kf8 {[%emt 0:00:56]} 53. Re5 {[%emt 0:01:03]} Kg7 {[%emt 0:01:46]} 54. g5 {[%emt 0:00:34]} Ra7 {[%emt 0:01:26]} 55. Re4 {[%emt 0:00:16]} Ra5+ {[%emt 0:00:16]} 56. Kg4 {[%emt 0:00:16]} Ra7 {[%emt 0:00:13]} 57. h6+ {[%emt 0:00:14]} Kg6 {[%emt 0:01:18]} 58. Re6+ {[%emt 0:00:31]} Kf7 {[%emt 0:00:18]} 59. Rb6 {[%emt 0:00:47]} Ra4+ {[%emt 0:00:44]} 60. Kh5 {[%emt 0:00:09]} Ra5 {[%emt 0:00:26]} 61. Rb8 {[%emt 0:00:48]} 1-0

[Event "Anderssen Festival 2019"]
[Site "Wroclaw"]
[Date "2019.08.07"]
[Round "4.4"]
[White "Lugovskoy, Maxim"]
[Black "Kareva, Natalia"]
[Result "0-1"]
[ECO "B52"]
[WhiteElo "2425"]
[BlackElo "2135"]
[Annotator "ChessBase"]
[PlyCount "150"]
[EventDate "2019.08.05"]
[EventType "swiss"]
[EventCountry "POL"]
[SourceTitle "playchess.com"]
[Source "ChessBase"]
[SourceQuality "1"]
[TimeControl "40/5400+30:900+30"]

1. e4 {[%emt 0:04:47]} c5 {[%emt 0:00:03]} 2. Nf3 {[%emt 0:00:28]} d6 {[%emt 0:02:06]} 3. Bb5+ {[%emt 0:00:17]} Bd7 {[%emt 0:00:38]} 4. Bxd7+ {[%emt 0:00:16]} Qxd7 {[%emt 0:00:04]} 5. O-O {[%emt 0:00:07]} Nc6 {[%emt 0:02:31]} 6. c3 {[%emt 0:00:04]} Nf6 {[%emt 0:03:31]} 7. d4 {[%emt 0:00:04]} cxd4 {[%emt 0:01:19]} 8. cxd4 {[%emt 0:00:04]} g6 {[%emt 0:00:35]} 9. Nc3 {[%emt 0:00:31]} Bg7 {[%emt 0:00:14]} 10. Bg5 {[%emt 0:01:35]} O-O {[%emt 0:02:33]} 11. h3 {[%emt 0:03:03]} Rfd8 {[%emt 0:08:38]} 12. Qe2 {[%emt 0:03:28]} h6 {[%emt 0:01:10]} 13. Bh4 {[%emt 0:00:47]} g5 {[%emt 0:01:03]} 14. Bg3 {[%emt 0:00:08]} d5 {[%emt 0:00:35]} 15. exd5 {[%emt 0:05:08]} Nxd5 {[%emt 0:01:17]} 16. Rad1 {[%emt 0:01:49]} a6 {[%emt 0:04:18]} 17. Rfe1 {[%emt 0:04:10]} Qf5 {[%emt 0:09:06]} 18. Ne4 {[%emt 0:04:29]} b6 {[%emt 0:04:34]} 19. a3 {[%emt 0:04:14]} Ra7 {[%emt 0:06:59]} 20. h4 {[%emt 0:05:12]} Nf4 {[%emt 0:04:57]} 21. Qe3 {[%emt 0:06:22]} Nd5 {[%emt 0:01:43]} 22. Qc1 {[%emt 0:04:20]} g4 {[%emt 0:03:49]} 23. Ne5 {[%emt 0:00:26]} Nxe5 {[%emt 0:06:28]} 24. Bxe5 {[%emt 0:00:34]} f6 {[%emt 0:09:40]} 25. Ng3 {[%emt 0:03:48]} Qc8 {[%emt 0:03:11]} 26. Bf4 {[%emt 0:00:07]} Qxc1 {[%emt 0:01:02]} 27. Bxc1 {[%emt 0:00:03]} Kf7 {[%emt 0:00:18]} 28. Bd2 {[%emt 0:06:51]} Rc8 {[%emt 0:01:32]} 29. Re2 {[%emt 0:12:10]} Rc2 {[%emt 0:01:28]} 30. h5 {[%emt 0:04:40]} e6 {[%emt 0:01:35]} 31. Ne4 {[%emt 0:10:29]} Rd7 {[%emt 0:00:22]} 32. Nc3 {[%emt 0:04:06]} f5 {[%emt 0:02:30]} 33. Rc1 {[%emt 0:00:34]} Rxc1+ {[%emt 0:02:22]} 34. Bxc1 {[%emt 0:00:01]} Nf6 {[%emt 0:00:36]} 35. Rc2 {[%emt 0:02:30]} Rxd4 {[%emt 0:03:09]} 36. Be3 {[%emt 0:00:23]} Rd6 {[%emt 0:02:13]} 37. g3 {[%emt 0:00:17]} Nxh5 {[%emt 0:02:26]} 38. Na4 {[%emt 0:02:22]} b5 {[%emt 0:00:10]} 39. Nb6 {[%emt 0:03:30]} f4 {[%emt 0:03:46]} 40. gxf4 {[%emt 0:00:00]} Nxf4 {[%emt 0:00:00]} 41. f3 {[%emt 0:11:12]} gxf3 {[%emt 0:05:53]} 42. Rc7+ {[%emt 0:01:47]} Kg6 {[%emt 0:00:16]} 43. Kf2 {[%emt 0:00:23]} Nd5 {[%emt 0:05:13]} 44. Nxd5 {[%emt 0:00:21]} exd5 {[%emt 0:00:04]} 45. Bf4 {[%emt 0:01:02]} Bd4+ {[%emt 0:00:56]} 46. Kxf3 {[%emt 0:01:02]} Rf6 {[%emt 0:00:09]} 47. Kg3 {[%emt 0:00:43]} Bxb2 {[%emt 0:00:09]} 48. Rd7 {[%emt 0:00:07]} d4 {[%emt 0:00:49]} 49. Be5 {[%emt 0:00:16]} Re6 {[%emt 0:01:40]} 50. Kf4 {[%emt 0:00:02]} Bxa3 {[%emt 0:00:16]} 51. Rg7+ {[%emt 0:00:11]} Kh5 {[%emt 0:00:02]} 52. Kf5 {[%emt 0:01:27]} Rc6 {[%emt 0:03:21]} 53. Rg2 {[%emt 0:01:13]} Be7 {[%emt 0:00:24]} 54. Rh2+ {[%emt 0:00:44]} Bh4 {[%emt 0:00:02]} 55. Bg3 {[%emt 0:00:01]} Rf6+ {[%emt 0:00:14]} 56. Ke4 {[%emt 0:04:47]} Kg4 {[%emt 0:00:07]} 57. Bxh4 {[%emt 0:00:05]} Rf4+ {[%emt 0:01:31]} 58. Kd3 {[%emt 0:00:02]} Rf3+ {[%emt 0:01:01]} 59. Kxd4 {[%emt 0:00:07]} Rh3 {[%emt 0:00:04]} 60. Rxh3 {[%emt 0:00:05]} Kxh3 {[%emt 0:00:02]} 61. Be1 {[%emt 0:01:09]} Kg4 {[%emt 0:01:23]} 62. Ke3 {[%emt 0:02:41]} h5 {[%emt 0:00:26]} 63. Bc3 {[%emt 0:00:29]} Kg3 {[%emt 0:00:23]} 64. Be1+ {[%emt 0:00:09]} Kg4 {[%emt 0:01:50]} 65. Ke4 {[%emt 0:00:24]} h4 {[%emt 0:00:39]} 66. Ke3 {[%emt 0:00:06]} h3 {[%emt 0:00:07]} 67. Kf2 {[%emt 0:00:03]} Kf4 {[%emt 0:00:06]} 68. Ba5 {[%emt 0:02:21]} Ke4 {[%emt 0:00:11]} 69. Kg3 {[%emt 0:00:01]} Kd3 {[%emt 0:00:11]} 70. Kxh3 {[%emt 0:00:02]} Kc4 {[%emt 0:00:07]} 71. Kg3 {[%emt 0:00:16]} b4 {[%emt 0:00:06]} 72. Bd8 {[%emt 0:00:15]} Kd3 {[%emt 0:00:27]} 73. Kf2 {[%emt 0:01:03]} b3 {[%emt 0:00:12]} 74. Bf6 {[%emt 0:00:06]} Kc2 {[%emt 0:00:10]} 75. Ke3 {[%emt 0:00:05]} a5 {[%emt 0:00:10]} 0-1

[Event "Anderssen Festival 2019"]
[Site "Wroclaw"]
[Date "2019.08.07"]
[Round "4.5"]
[White "Nguyen, Alex Dac-Vuong"]
[Black "Eggink, Ryszard"]
[Result "0-1"]
[ECO "B54"]
[WhiteElo "2267"]
[BlackElo "2377"]
[Annotator "NA"]
[PlyCount "60"]
[EventDate "2019.08.05"]
[EventType "swiss"]
[EventCountry "POL"]
[SourceTitle "playchess.com"]
[Source "ChessBase"]
[SourceQuality "1"]
[TimeControl "40/5400+30:900+30"]

1. e4 {[%emt 0:00:00]} c5 {[%emt 0:00:00]} 2. Nf3 {[%emt 0:00:00]} d6 {[%emt 0:00:00]} 3. d4 {[%emt 0:00:00]} cxd4 {[%emt 0:00:00]} 4. Nxd4 {[%emt 0:00:00]} Nf6 {[%emt 0:00:01]} 5. f3 {[%emt 0:00:00]} Nc6 {[%emt 0:03:53]} 6. Be3 {[%emt 0:16:37]} e5 {[%emt 0:09:06]} 7. Nb3 {[%emt 0:00:19]} d5 {[%emt 0:02:27]} 8. exd5 {[%emt 0:00:24]} Nxd5 {[%emt 0:00:15]} 9. Bf2 {[%emt 0:00:22]} Bf5 {[%emt 0:07:02]} 10. Bd3 {[%emt 0:04:58]} Bg6 {[%emt 0:05:44]} 11. O-O {[%emt 0:09:09]} Be7 {[%emt 0:03:22]} 12. Re1 {[%emt 0:11:41]} Rc8 {[%emt 0:04:47]} 13. a3 {[%emt 0:03:42]} O-O {[%emt 0:02:31]} 14. Bxg6 {[%emt 0:01:20]} hxg6 {[%emt 0:00:01]} 15. N1d2 {[%emt 0:00:34]} Nf4 {[%emt 0:01:27]} 16. Nc4 {[%emt 0:12:16]} Qc7 {[%emt 0:00:53]} 17. Bg3 {[%emt 0:00:24]} Rfd8 {[%emt 0:04:46]} 18. Nbd2 {[%emt 0:04:48]} Bg5 {[%emt 0:03:22]} 19. a4 {[%emt 0:12:40]} Na5 {[%emt 0:03:35]} 20. Ne3 {[%emt 0:02:50]} Nd5 {[%emt 0:03:54]} 21. Nef1 {[%emt 0:03:01]} Qb6+ {[%emt 0:06:39]} 22. Bf2 {[%emt 0:00:07]} Qxb2 {[%emt 0:00:05]} 23. Rb1 {[%emt 0:06:57]} Qa3 {[%emt 0:04:19]} 24. Ra1 {[%emt 0:06:14]} Qe7 {[%emt 0:03:15]} 25. Qe2 {[%emt 0:01:32]} Rxc2 {[%emt 0:01:24]} 26. Qb5 {[%emt 0:00:29]} Bxd2 {[%emt 0:06:25]} 27. Nxd2 {[%emt 0:00:07]} Nc3 {[%emt 0:01:56]} 28. Qxa5 {[%emt 0:00:35]} Rdxd2 {[%emt 0:00:08]} 29. Rxe5 {[%emt 0:00:40]} Qd7 {[%emt 0:00:35]} 30. Rf1 {[%emt 0:00:59]} Rxf2 {[%emt 0:00:20]} 0-1

[Event "Anderssen Festival 2019"]
[Site "Wroclaw"]
[Date "2019.08.07"]
[Round "4.6"]
[White "Malecki, Rafal"]
[Black "Skliarov, Viktor"]
[Result "1/2-1/2"]
[ECO "A06"]
[WhiteElo "2063"]
[BlackElo "2360"]
[Annotator "NA"]
[PlyCount "110"]
[EventDate "2019.08.05"]
[EventType "swiss"]
[EventCountry "POL"]
[SourceTitle "playchess.com"]
[Source "ChessBase"]
[SourceQuality "1"]
[TimeControl "40/5400+30:900+30"]

1. Nf3 d5 2. b3 c5 3. Bb2 Nc6 4. e3 Nf6 5. Be2 Bf5 6. d3 Qc7 7. Nbd2 e5 8. a3 Bd6 9. Nh4 Be6 10. c4 d4 11. e4 g6 12. O-O O-O 13. Kh1 Ne8 14. Ndf3 Be7 15. Bc1 Qd8 16. g3 f5 17. Bh6 fxe4 18. dxe4 Ng7 19. Qd2 Bh3 20. Ng2 Qd7 21. Nfe1 Rf7 22. Nd3 Ne8 23. b4 Bd6 24. bxc5 Bf8 25. Bxf8 Rxf8 26. Qg5 Nf6 27. f3 Rae8 28. Rfd1 Kg7 29. Nh4 Be6 30. Nb4 Qe7 31. Nd5 Qxc5 32. Rab1 b6 33. a4 Na5 34. Rb5 Qc8 35. Nxf6 Rxf6 36. Rxe5 h6 37. Qd2 g5 38. Nf5+ Bxf5 39. Rxe8 Qxe8 40. exf5 Nc6 41. Bd3 Ne5 42. Be4 g4 43. Qxd4 gxf3 44. Rf1 Qe7 45. Bxf3 Rxf5 46. Re1 Qf6 47. Bg2 Nf7 48. Qd7 a5 49. Bh3 Rf2 50. Kg1 Qb2 51. Rf1 Rxf1+ 52. Bxf1 Kf6 53. c5 bxc5 54. Qc6+ Kg7 55. Qxc5 Qd2 1/2-1/2

[Event "Anderssen Festival 2019"]
[Site "Wroclaw"]
[Date "2019.08.07"]
[Round "4.7"]
[White "Dubinski, Mateusz"]
[Black "Czyz, Andrzej"]
[Result "1-0"]
[ECO "A56"]
[WhiteElo "2306"]
[BlackElo "2000"]
[Annotator "NA"]
[PlyCount "79"]
[EventDate "2019.08.05"]
[EventType "swiss"]
[EventCountry "POL"]
[SourceTitle "playchess.com"]
[Source "ChessBase"]
[SourceQuality "1"]
[TimeControl "40/5400+30:900+30"]

1. d4 {[%emt 0:02:16]} Nf6 {[%emt 0:00:00]} 2. c4 {[%emt 0:00:52]} c5 {[%emt 0:00:04]} 3. Nf3 {[%emt 0:01:22]} cxd4 {[%emt 0:00:26]} 4. Nxd4 {[%emt 0:00:06]} Nc6 {[%emt 0:00:12]} 5. Nc3 {[%emt 0:00:58]} g6 {[%emt 0:00:42]} 6. g3 {[%emt 0:01:52]} Bg7 {[%emt 0:01:57]} 7. Bg2 {[%emt 0:00:07]} O-O {[%emt 0:00:32]} 8. O-O {[%emt 0:00:12]} Qb6 {[%emt 0:11:18]} 9. Nc2 {[%emt 0:01:54]} d6 {[%emt 0:02:28]} 10. Ne3 {[%emt 0:01:06]} Bd7 {[%emt 0:01:43]} 11. b3 {[%emt 0:08:41]} Rab8 {[%emt 0:14:00]} 12. Bb2 {[%emt 0:01:50]} Qd8 {[%emt 0:01:21]} 13. Qd2 {[%emt 0:03:00]} a6 {[%emt 0:01:23]} 14. Rac1 {[%emt 0:04:09]} Ne5 {[%emt 0:04:38]} 15. h3 {[%emt 0:03:05]} Bc6 {[%emt 0:00:45]} 16. Ncd5 {[%emt 0:02:21]} Nxd5 {[%emt 0:10:35]} 17. cxd5 {[%emt 0:00:23]} Bb5 {[%emt 0:01:13]} 18. f4 {[%emt 0:02:06]} Nd7 {[%emt 0:02:49]} 19. Bxg7 {[%emt 0:00:37]} Kxg7 {[%emt 0:00:03]} 20. a4 {[%emt 0:00:27]} Bxe2 {[%emt 0:00:36]} 21. Qxe2 {[%emt 0:00:26]} Kg8 {[%emt 0:00:11]} 22. b4 {[%emt 0:10:22]} a5 {[%emt 0:01:15]} 23. b5 {[%emt 0:00:56]} Nc5 {[%emt 0:00:07]} 24. Rc4 {[%emt 0:00:25]} Qb6 {[%emt 0:00:36]} 25. Kh2 {[%emt 0:00:46]} Rbc8 {[%emt 0:00:30]} 26. f5 {[%emt 0:02:11]} Nd7 {[%emt 0:01:33]} 27. Rxc8 {[%emt 0:00:29]} Rxc8 {[%emt 0:00:09]} 28. fxg6 {[%emt 0:01:23]} hxg6 {[%emt 0:00:02]} 29. Ng4 {[%emt 0:00:19]} Ne5 {[%emt 0:02:03]} 30. Nxe5 {[%emt 0:00:15]} dxe5 {[%emt 0:00:04]} 31. Qxe5 {[%emt 0:00:18]} Qd8 {[%emt 0:01:24]} 32. h4 {[%emt 0:02:57]} Rc4 {[%emt 0:03:19]} 33. Rf4 {[%emt 0:01:16]} Rc1 {[%emt 0:01:37]} 34. h5 {[%emt 0:01:04]} f6 {[%emt 0:00:20]} 35. Qe6+ {[%emt 0:00:10]} Kg7 {[%emt 0:00:02]} 36. hxg6 {[%emt 0:00:38]} Kxg6 {[%emt 0:00:52]} 37. Be4+ {[%emt 0:00:42]} Kh6 {[%emt 0:00:20]} 38. Rh4+ {[%emt 0:00:18]} Kg7 {[%emt 0:00:26]} 39. Rh7+ {[%emt 0:00:10]} Kf8 {[%emt 0:00:12]} 40. Qf7# {[%emt 0:00:00]} 1-0

[Event "Anderssen Festival 2019"]
[Site "Wroclaw"]
[Date "2019.08.07"]
[Round "4.8"]
[White "Luberanski, Jakub"]
[Black "Piotrowski, Przemyslaw"]
[Result "0-1"]
[ECO "A70"]
[WhiteElo "2010"]
[BlackElo "2273"]
[Annotator "NA"]
[PlyCount "88"]
[EventDate "2019.08.05"]
[EventType "swiss"]
[EventCountry "POL"]
[SourceTitle "playchess.com"]
[Source "ChessBase"]
[SourceQuality "1"]
[TimeControl "40/5400+30:900+30"]

1. d4 c5 2. d5 Nf6 3. c4 e6 4. Nc3 exd5 5. cxd5 d6 6. e4 g6 7. Nf3 Bg7 8. Be2 Bg4 9. O-O O-O 10. Qc2 Nbd7 11. h3 Bxf3 12. Bxf3 a6 13. a4 b6 14. Be3 Re8 15. Rab1 Rc8 16. b3 Qc7 17. Be2 Qb7 18. f4 Re7 19. g4 Ne8 20. Bf3 Bd4 21. Qd2 Bxe3+ 22. Qxe3 f6 23. Rbe1 b5 24. axb5 axb5 25. Bg2 b4 26. Ne2 Ng7 27. Ra1 Nb6 28. Qd3 Qc7 29. Ra6 Qb8 30. Rfa1 Rb7 31. Ng3 Nd7 32. h4 c4 33. bxc4 Nc5 34. Qb1 Nxa6 35. Rxa6 Rxc4 36. h5 b3 37. hxg6 hxg6 38. Rc6 Qa7+ 39. Kh2 Qa2 40. Qd3 b2 41. Rxc4 b1=Q 42. Rc8+ Kh7 43. Nh5 Qxg2+ 44. Kxg2 Rb2+ 0-1